fUSD/lending_fUSD_20241109
["ID","MTS","AMOUNT","RATE_DAILY","PERIOD"]
[341737924,1731167438526,-1396.0,0.000299,2]
[341737926,1731167438535,-1113.12669647,0.000299,2]
[341737928,1731167438545,-316.2431,0.00029934,2]
[341737930,1731167438554,-150.0,0.00029939,2]
[341737932,1731167438564,-436.5474,0.0002994,15]
[341737934,1731167438574,-1500.0,0.00029978,2]
[341737936,1731167438583,-150.0,0.00029991,2]
[341737938,1731167438592,-270.732,0.00029993,24]
[341737940,1731167438604,-747.0,0.0003,3]
[341737942,1731167438614,-2000.0,0.0003,2]
[341737944,1731167438623,-150.0,0.0003,10]
[341737946,1731167438633,-2000.0,0.0003,2]
[341737948,1731167438643,-150.0,0.00030011,2]
[341737950,1731167438653,-1500.0,0.00030026,2]
[341737951,1731167438662,-150.0,0.00030029,2]
[341737953,1731167438672,-380.2792,0.00030034,2]
[341737955,1731167438681,-6782.513,0.00030034,2]
[341737958,1731167438691,-203381.3776,0.00030034,2]
[341737960,1731167438701,-200.0,0.00030036,2]
[341737961,1731167438710,-244.65092538,0.00030048,2]
[341737964,1731167438719,-951.65,0.000301,2]
[341737966,1731167438730,-201.0,0.000301,2]
[341737967,1731167438739,-750.0,0.000301,18]
[341737970,1731167438748,-308.77473673,0.0003011,7]
[341737971,1731167438757,-150.0,0.0003011,7]
[341737973,1731167438767,-151.66342238,0.0003011,7]
[341737975,1731167438776,-150.0,0.0003011,7]
[341737977,1731167438785,-150.0,0.0003011,7]
[341737979,1731167438795,-150.0,0.0003011,7]
[341737981,1731167438805,-150.0,0.0003011,7]
[341737984,1731167438816,-150.0,0.0003011,7]
[341737986,1731167438825,-1399.1266152,0.00030115,2]
[341737988,1731167438835,-1495.7495799,0.00030115,2]
[341737990,1731167438845,-3647.4075916,0.00030115,2]
[341737992,1731167438854,-3899.2956844,0.00030115,2]
[341737993,1731167438863,-238.66563189,0.00030124,2]
[341737995,1731167438873,-238.66563189,0.00030126,2]
[341737997,1731167438883,-238.66563189,0.00030126,2]
[341737999,1731167438894,-300.94716079,0.00030133,2]
[341738002,1731167438903,-6721.38814813,0.00030133,2]
[341738003,1731167438912,-122475.61642412,0.00030134,4]
[341738005,1731167438922,-2740.04418207,0.00030134,4]
[341738008,1731167438934,-153832.40531616,0.00030134,2]
[341738010,1731167438947,-592.18263211,0.00030134,2]
[341738012,1731167438958,-1337.9999998,0.00030134,2]
[341738114,1731167439943,-1000.0,0.000301,2]
[341738115,1731167439952,-258.62263488,0.00030134,2]
[341738118,1731167439963,-1888.13999996,0.00030134,2]
[341738191,1731167443016,-83034.7435351,0.00030134,2]
[341738192,1731167443736,-8717.37867111,0.00030134,2]
[341738197,1731167446054,-204.16,0.0002977,10]
[341738198,1731167446064,-9874.64060756,0.0002978,2]
[341738199,1731167554846,578.0,0.0003,120]
[341738200,1731167577598,500.0,0.0003,120]
[341738201,1731167595521,1000.0,0.0003,120]
[341738202,1731167601568,500.0,0.00029984,120]
[341738203,1731167603574,411.07,0.00028942,120]
[341738204,1731167690658,500.0,0.0003,120]
[341738206,1731167706896,164.26,0.00015342,2]
[341738207,1731167818410,3419.46890309,0.0002,2]
[341738208,1731168021302,151.0,0.0003,120]
[341738210,1731168204957,500.0,0.00029984,120]
[341738211,1731168263403,343.14,0.0002771,120]
[341738212,1731168378362,158.61,0.00015342,2]
[341738214,1731168519610,150.0,0.0002,2]
[341738215,1731168542580,150.0,0.00019725,2]
[341738219,1731168602555,150.0,0.00019725,2]
[341738220,1731168602753,157.58237638,0.00019725,2]
[341738224,1731168631946,-1551.95475,0.0002131,2]
[341738225,1731168631957,-503.34525,0.00021462,2]
[341738226,1731168631969,-3869.44697151,0.00021462,2]
[341738227,1731168631983,-3296.02384028,0.00021462,2]
[341738228,1731168631997,-582.28881548,0.00021462,2]
[341738229,1731168632009,-594.567063,0.00021462,2]
[341738230,1731168632276,-15314.37658192,0.00021462,2]
[341738231,1731168632286,-304.3025,0.00021562,2]
[341738232,1731168632296,-1305.42175,0.00021668,2]
[341738233,1731168632306,-249.5365,0.00021668,2]
[341738234,1731168632317,-189.5315,0.0002179,2]
[341738235,1731168632326,-766.0,0.00023,2]
[341738236,1731168632338,-851.79,0.00023,2]
[341738237,1731168632347,-293.13,0.00023,2]
[341738238,1731168632357,-1495.15,0.0002588,2]
[341738239,1731168632368,-180.91,0.00025922,2]
[341738240,1731168632377,-500.0,0.000263,7]
[341738241,1731168632388,-500.0,0.000263,7]
[341738242,1731168632398,-500.0,0.000263,7]
[341738243,1731168632408,-250.0,0.00027466,2]
[341738244,1731168632418,-493.17,0.00027471,2]
[341738245,1731168632427,-164.52922332,0.00027537,2]
[341738246,1731168632437,-165.63367157,0.00027537,2]
[341738247,1731168632447,-490.09038091,0.00027537,2]
[341738248,1731168632457,-12720.10983994,0.00027538,2]
[341738249,1731168632468,-11179.89016006,0.00027538,2]
[341738250,1731168632478,-2465.96,0.00027616,2]
[341738251,1731168632487,-1748.01,0.00027648,2]
[341738252,1731168632497,-156.18,0.00027784,30]
[341738253,1731168632506,-500.0,0.00027944,7]
[341738254,1731168632515,-356.18288757,0.00027944,7]
[341738255,1731168632525,-500.0,0.00027944,7]
[341738256,1731168632534,-293.0,0.00027953,2]
[341738257,1731168632544,-152.0,0.00028006,3]
[341738258,1731168632553,-1495.15,0.00028144,2]
[341738259,1731168632562,-7908.10794478,0.00028255,5]
[341738260,1731168632571,-473.14,0.00028264,2]
[341738261,1731168632580,-1209.409204,0.000286,2]
[341738262,1731168632590,-155.29,0.00028646,2]
[341738263,1731168632599,-216.53,0.00028695,2]
[341738264,1731168632610,-473.14,0.00028718,2]
[341738265,1731168632621,-196.04,0.0002878,2]
[341738266,1731168632631,-282.53,0.00028813,2]
[341738267,1731168632640,-282.1,0.000289,2]
[341738268,1731168632650,-250.0,0.000289,2]
[341738269,1731168632661,-1000.0,0.00028912,2]
[341738270,1731168632670,-685.58,0.00029,2]
[341738271,1731168632680,-210.9696942,0.00029,2]
[341738272,1731168632690,-300.32714378,0.00029048,2]
[341738273,1731168632699,-500.0,0.00029073,2]
[341738274,1731168632708,-1417.25,0.0002909,2]
[341738275,1731168632717,-1417.25,0.0002909,2]
[341738276,1731168632727,-1417.25,0.0002909,2]
[341738277,1731168632736,-1417.25,0.0002909,2]
[341738278,1731168632746,-1417.25,0.0002909,2]
[341738279,1731168632756,-502.11943703,0.00029099,2]
[341738280,1731168632765,-48925.0999268,0.00029099,2]
[341738281,1731168632774,-7500.0,0.00029099,2]
[341738282,1731168632785,-4107.26090934,0.00029099,2]
[341738283,1731168632794,-500.0,0.00029099,2]
[341738284,1731168632804,-500.0,0.00029099,2]
[341738285,1731168632813,-500.0,0.00029099,2]
[341738286,1731168632822,-283.36309455,0.00029099,2]
[341738287,1731168632831,-500.0,0.00029099,2]
[341738288,1731168632843,-500.0,0.00029099,2]
[341738289,1731168632852,-500.0,0.00029099,2]
[341738290,1731168632862,-500.0,0.00029099,2]
[341738291,1731168632872,-500.0,0.00029099,2]
[341738292,1731168632881,-500.0,0.00029099,2]
[341738293,1731168632891,-500.0,0.00029099,2]
[341738294,1731168632901,-500.0,0.00029099,2]
[341738295,1731168632910,-500.0,0.00029099,2]
[341738296,1731168632920,-500.0,0.00029099,2]
[341738297,1731168632931,-598.35416619,0.00029099,2]
[341738298,1731168632940,-2351.0056661,0.000291,2]
[341738299,1731168632952,-148798.83,0.000291,5]
[341738300,1731168632962,-45144.24646945,0.000291,5]
[341738301,1731168632979,-5304.74974502,0.000291,5]
[341738302,1731168632991,-4199.3755145,0.000291,5]
[341738303,1731168633004,-24120.93747299,0.000291,5]
[341738304,1731168633015,-56012.73942943,0.000291,5]
[341738305,1731168635157,-24236.38419514,0.000291,4]
[341738309,1731168637982,-396.64,0.00028765,2]
[341738310,1731168638069,-603.36,0.00028765,2]
[341738311,1731168638079,-167.28,0.00028765,2]
[341738312,1731168638089,-102120.22004326,0.000291,4]
[341738313,1731168638113,-500.0,0.000291,4]
[341738800,1731168643113,-482.30958441,0.000291,4]
[341738994,1731168711266,150.0,0.00018872,2]
[341738995,1731168721411,300.0,0.00019725,2]
[341738996,1731168737458,-420.0,0.00021484,2]
[341738997,1731168737479,-180.84125,0.0002184,2]
[341738998,1731168737500,-190.91,0.0002184,2]
[341738999,1731168752912,150.0,0.00018876,2]
[341739000,1731168782000,194.0,0.00019725,2]
[341739001,1731168790047,2037.92293938,0.0003,120]
[341739002,1731168801153,214.186432,0.00029984,120]
[341739003,1731168971270,196.63,0.00027913,120]
[341739005,1731169137625,150.0,0.00015342,2]
[341739006,1731169137646,17.54,0.00015342,2]
[341739008,1731169285321,132.46,0.0002,2]
[341739009,1731169285342,424.3,0.0002,2]
[341739011,1731169484503,247.39161201,0.0003,120]
[341739012,1731169508140,1087576.22813722,0.00016,2]
[341739013,1731169519713,600.0,9e-05,2]
[341739014,1731169536568,150.0,9e-05,2]
[341739016,1731169680195,6615.20089601,0.00018,2]
[341739020,1731169733086,368.18,0.00027724,120]
[341739051,1731169832231,-450.0,0.00021,2]
[341739052,1731169832241,-189.76713771,0.00021645,2]
[341739053,1731169832251,-167.54,0.00021745,2]
[341739054,1731169832259,-832.8615,0.00021858,2]
[341739055,1731169832269,-522.1935,0.00021909,2]
[341739056,1731169832278,-47.08576956,0.00021973,2]
[341739057,1731169832290,-370.01248044,0.00021973,2]
[341739058,1731169832299,-3982.32688817,0.00022,2]
[341739059,1731169832308,-299.99,0.00022,7]
[341739060,1731169832319,-500.0,0.00023,2]
[341739061,1731169832328,-2164.0,0.00023,2]
[341739062,1731169832337,-550.0,0.00025,2]
[341739063,1731169832346,-1478.62,0.00025589,2]
[341739064,1731169832355,-500.0,0.000263,7]
[341739065,1731169832364,-500.0,0.000263,7]
[341739066,1731169832373,-500.0,0.000263,7]
[341739067,1731169832383,-23900.0,0.00026801,2]
[341739068,1731169832392,-156.18,0.00026979,30]
[341739069,1731169832401,-600.0,0.00027,2]
[341739070,1731169832410,-11171.28459415,0.00027,2]
[341739071,1731169832419,-410.45685476,0.00027,2]
[341739072,1731169832428,-3000.0,0.00027,2]
[341739073,1731169832439,-985.85165923,0.00027,2]
[341739074,1731169832448,-1207.5,0.00027114,2]
[341739075,1731169832457,-208.53,0.00027213,2]
[341739076,1731169832467,-4189.07376384,0.000275,5]
[341739077,1731169832479,-2610.92623616,0.000275,5]
[341739078,1731169832488,-1000.0,0.00027503,2]
[341739079,1731169832497,-1207.5,0.00027549,2]
[341739080,1731169832507,-246.58,0.00027582,2]
[341739081,1731169832516,-159.12424,0.00027695,2]
[341739082,1731169832525,-250.0,0.00027724,2]
[341739083,1731169832535,-1478.62,0.00027853,2]
[341739084,1731169832544,-500.0,0.00027944,7]
[341739085,1731169832554,-500.0,0.00027944,7]
[341739086,1731169832564,-1207.5,0.00027985,2]
[341739087,1731169832575,-167.54,0.00028147,2]
[341739088,1731169832587,-250.0,0.00028159,2]
[341739089,1731169832596,-154.43,0.00028191,2]
[341739090,1731169832605,-5149.07734807,0.00028214,2]
[341739091,1731169832615,-344.08461703,0.00028227,2]
[341739092,1731169832626,-599.66030307,0.00028249,2]
[341739093,1731169832636,-599.66030307,0.00028254,2]
[341739094,1731169832646,-344.08461703,0.00028274,2]
[341739095,1731169832657,-599.66030307,0.0002828,2]
[341739096,1731169832666,-344.08461703,0.0002829,2]
[341739097,1731169832676,-599.66030307,0.00028292,2]
[341739098,1731169832685,-1207.5,0.00028421,2]
[341739099,1731169832695,-5985.0,0.00028521,2]
[341739100,1731169832704,-208.53,0.00028573,2]
[341739101,1731169832713,-2000.0,0.000286,2]
[341739102,1731169832722,-2000.0,0.000286,2]
[341739103,1731169832732,-2000.0,0.0002861,2]
[341739104,1731169832742,-2055.698322,0.0002861,2]
[341739105,1731169832751,-3821.212736,0.0002862,2]
[341739106,1731169832761,-166.68,0.00028731,2]
[341739107,1731169832770,-350.79644626,0.00028777,2]
[341739108,1731169832779,-1000.0,0.000288,2]
[341739109,1731169832788,-1207.5,0.00028856,2]
[341739110,1731169832797,-228.09,0.0002889,3]
[341739111,1731169832807,-3878.94080263,0.00028899,2]
[341739112,1731169832818,-1642.29662385,0.000289,2]
[341739113,1731169832827,-2017.9943,0.000289,2]
[341739114,1731169832837,-5994.3158,0.000289,2]
[341739115,1731169832846,-5213.0778,0.000289,2]
[341739116,1731169832855,-14282.8691,0.000289,2]
[341739117,1731169832865,-1000.0,0.000289,2]
[341739118,1731169832874,-658.15,0.000289,2]
[341739119,1731169832884,-1000.0,0.000289,2]
[341739120,1731169832893,-2500.0,0.000289,2]
[341739121,1731169832903,-486.0334,0.00028973,2]
[341739122,1731169832913,-500.0,0.00028973,2]
[341739123,1731169832923,-6287.8412,0.00028998,2]
[341739124,1731169832932,-500.0,0.00028999,2]
[341739125,1731169832941,-500.0,0.00028999,2]
[341739126,1731169832951,-500.0,0.00028999,2]
[341739127,1731169832961,-500.0,0.00028999,2]
[341739128,1731169832970,-500.0,0.00028999,2]
[341739129,1731169832979,-500.0,0.00028999,2]
[341739130,1731169832989,-500.0,0.00028999,2]
[341739131,1731169832999,-500.0,0.00028999,2]
[341739132,1731169833008,-500.0,0.00028999,2]
[341739133,1731169833018,-500.0,0.00028999,2]
[341739134,1731169833027,-621.5033058,0.00028999,2]
[341739135,1731169833038,-351.86666528,0.00028999,2]
[341739136,1731169833048,-500.0,0.00029,2]
[341739137,1731169833057,-7825.0428,0.00029,2]
[341739138,1731169833071,-1642.29662385,0.00029,2]
[341739139,1731169833082,-17304.57118673,0.00029,2]
[341739140,1731169833095,-6715.48225985,0.00029,2]
[341739141,1731169833811,-1106.02,0.00029,2]
[341739142,1731169833870,-34136.13735342,0.00029,2]
[341739143,1731169833880,-7130.4965,0.00029,2]
[341739144,1731169833891,-42657.3114,0.00029,2]
[341739145,1731169833900,-650.0,0.00029,2]
[341739146,1731169833910,-246.24940741,0.00029,2]
[341739147,1731169833919,-4239.0749,0.00029,2]
[341739148,1731169833929,-150.16357191,0.00029,2]
[341739149,1731169833939,-1076.0,0.00029,2]
[341739150,1731169833949,-3878.94080261,0.00029025,15]
[341739151,1731169833959,-500.45104195,0.00029073,5]
[341739152,1731169833968,-500.0,0.00029073,5]
[341739153,1731169833978,-157.47484836,0.00029073,5]
[341739154,1731169833987,-500.0,0.00029073,2]
[341739155,1731169833997,-217.05276592,0.0002909,2]
[341739156,1731169834008,-308.45845442,0.00029096,7]
[341739157,1731169834018,-150.0,0.00029096,7]
[341739158,1731169834028,-150.0,0.00029096,7]
[341739159,1731169834038,-151.64678815,0.00029096,7]
[341739161,1731169834048,-150.0,0.00029096,7]
[341739163,1731169834058,-150.0,0.00029096,7]
[341739165,1731169834069,-150.0,0.00029096,7]
[341739167,1731169834079,-150.0,0.00029096,7]
[341739168,1731169834089,-152.1214645,0.00029096,7]
[341739170,1731169834099,-150.0,0.00029096,7]
[341739172,1731169834109,-164.97474459,0.00029096,7]
[341739174,1731169834119,-150.0,0.00029096,7]
[341739175,1731169834129,-150.0,0.00029096,7]
[341739176,1731169834139,-76779.53039576,0.00029099,2]
[341739177,1731169834148,-1004.8315,0.00029099,2]
[341739178,1731169834158,-559.83,0.00029099,7]
[341739179,1731169834167,-1000.0,0.00029099,2]
[341739180,1731169834176,-153.43049109,0.00029099,2]
[341739181,1731169834186,-999.0,0.00029099,2]
[341739182,1731169834195,-607.6768836,0.00029099,2]
[341739183,1731169834204,-1000.0,0.000291,7]
[341739184,1731169834213,-2115.90509949,0.000291,2]
[341739185,1731169834222,-317613.24158682,0.000291,5]
[341739186,1731169834305,-1221.31043856,0.000291,5]
[341739187,1731169834318,-6802.0277961,0.000291,5]
[341739188,1731169834347,-4972.14896816,0.000291,5]
[341739189,1731169834358,-268.07010932,0.000291,5]
[341739190,1731169834370,-1449.08004055,0.000291,5]
[341739191,1731169834381,-427.51880542,0.000291,5]
[341739202,1731169838038,-354.6,0.000286,10]
[341739203,1731169838048,-323.15414381,0.00029,2]
[341739204,1731169838058,-54082.3657238,0.000291,4]
[341739205,1731169838069,-580.70497735,0.000291,4]
[341739206,1731169838096,-5990.02253738,0.000291,4]
[341739207,1731169838107,-6519.21499872,0.000291,4]
[341739208,1731169838156,-84252.81984581,0.000291,4]
[341739209,1731169838165,-8247.26267212,0.000291,4]
[341739210,1731169838176,-95345.48107346,0.000291,5]
[341739211,1731169838188,-1140.474,0.000291,5]
[341739212,1731169838212,-1056.81499998,0.000291,5]
[341739213,1731169838225,-610.857276,0.000291,5]
[341739214,1731169838238,-998.37739008,0.000291,5]
[341739215,1731169838274,-303.48,0.000291,5]
[341739216,1731169838333,-338.18,0.000291,5]
[341739372,1731169840030,-361.20374003,0.000291,5]
[341739552,1731169841726,-283.7363514,0.00027113,2]
[341739560,1731169841783,-216.2636486,0.00027113,2]
[341739562,1731169841792,-500.0,0.00027113,2]
[341739564,1731169841802,-500.0,0.00027113,2]
[341739566,1731169841811,-625.9262948,0.00027113,2]
[341739568,1731169841822,-500.0,0.00027113,2]
[341739570,1731169841831,-10949.37540823,0.000291,5]
[341739575,1731169841875,-417.74419421,0.00027113,2]
[341739728,1731169843369,-182.25580579,0.00027113,2]
[341739730,1731169843378,-146.00017078,0.00027113,2]
[341739737,1731169843441,-353.99982922,0.00027113,2]
[341739739,1731169843451,-500.0,0.00027113,2]
[341739741,1731169843460,-500.0,0.00027113,2]
[341739743,1731169843469,-500.0,0.00027113,2]
[341739745,1731169843478,-500.0,0.00027113,2]
[341739747,1731169843487,-500.0,0.00027113,2]
[341739749,1731169843496,-500.0,0.00027113,2]
[341739751,1731169843506,-500.0,0.00027113,2]
[341739753,1731169843516,-500.0,0.00027113,2]
[341739755,1731169843525,-500.0,0.00027113,2]
[341739757,1731169843534,-500.0,0.00027113,2]
[341739759,1731169843545,-500.0,0.00027113,2]
[341739761,1731169843554,-500.0,0.00027113,2]
[341739763,1731169843563,-500.0,0.00027113,2]
[341739766,1731169843574,-500.0,0.00027113,2]
[341739770,1731169843586,-500.0,0.00027113,2]
[341739773,1731169843595,-500.0,0.00027113,2]
[341739775,1731169843604,-133775.53416885,0.000291,5]
[341739777,1731169843615,-6014.11597672,0.000291,5]
[341739780,1731169843627,-12417.38165686,0.000291,5]
[341739782,1731169843638,-13914.36023561,0.000291,5]
[341739787,1731169843681,-1180.26645338,0.000291,5]
[341739790,1731169843692,-152316.76345252,0.000291,5]
[341740027,1731169846151,-15269.8788,0.000289,2]
[341740032,1731169846260,-1361.9724584,0.000289,2]
[341740033,1731169846319,-574.69607523,0.000289,2]
[341740034,1731169846429,-37141.22019187,0.000289,2]
[341740037,1731170011019,214.99,0.00015342,2]
[341740038,1731170439371,348.15,0.0002672,120]
[341740040,1731170727154,155.58,0.00015342,2]
[341740041,1731170829346,-450.0,0.00021,2]
[341740042,1731170829366,-557.67337021,0.00021381,2]
[341740043,1731170829386,-871.84625,0.00021695,2]
[341740044,1731170829408,-171.84575,0.00021695,2]
[341740045,1731170829677,-370.19825,0.00021702,2]
[341740046,1731170829699,-214.99,0.00021745,2]
[341740047,1731170829720,-211.0195,0.00021858,2]
[341740052,1731170970628,150.0,0.0003,120]
[341740055,1731171032213,-531.335,0.00021917,2]
[341740056,1731171032223,-1053.0,0.00022507,2]
[341740057,1731171032232,-500.0,0.00023,2]
[341740058,1731171032242,-1053.0,0.00023691,2]
[341740059,1731171032251,-1564.01,0.00023935,2]
[341740060,1731171032260,-1053.0,0.00024938,2]
[341740061,1731171032270,-293.155,0.00025,2]
[341740062,1731171032281,-256.845,0.00025,2]
[341740063,1731171032290,-2505.7,0.00025621,2]
[341740064,1731171032301,-180.91,0.00025822,2]
[341740065,1731171032311,-652.49762906,0.00026033,2]
[341740066,1731171035724,-452.76695977,0.00026033,2]
[341740067,1731171035836,-567.89352,0.00026033,2]
[341740068,1731171035949,-832.54189117,0.00026033,2]
[341740069,1731171035959,-246.58,0.0002612,2]
[341740070,1731171035968,-1564.01,0.00026199,2]
[341740071,1731171035977,-1000.0,0.00026206,2]
[341740072,1731171035986,-165.09,0.00026232,2]
[341740073,1731171035996,-1053.0,0.00026251,2]
[341740074,1731171036005,-250.0,0.00026257,2]
[341740075,1731171036014,-16404.49,0.00026293,2]
[341740076,1731171036023,-500.0,0.000263,7]
[341740077,1731171036033,-646.56945372,0.000263,7]
[341740078,1731171036042,-2505.7,0.00026445,2]
[341740079,1731171036054,-250.0,0.00026527,2]
[341740080,1731171036063,-297.22,0.00026533,2]
[341740081,1731171036072,-163.47,0.00026824,30]
[341740082,1731171036081,-2505.7,0.00026856,2]
[341740083,1731171036090,-934.51336364,0.00026899,2]
[341740084,1731171036099,-8500.0,0.000269,3]
[341740085,1731171036108,-600.0,0.00027,2]
[341740086,1731171036116,-180.54,0.00027081,2]
[341740087,1731171036127,-500.0,0.00027098,2]
[341740088,1731171036137,-500.0,0.00027098,2]
[341740089,1731171036146,-351.21289477,0.00027098,2]
[341740090,1731171036156,-400.0,0.00027098,2]
[341740091,1731171036165,-469.17,0.00027099,2]
[341740092,1731171036175,-23900.0,0.00027099,2]
[341740093,1731171036184,-167.12,0.0002711,2]
[341740094,1731171036193,-2505.7,0.00027268,2]
[341740095,1731171036202,-1053.0,0.00027563,5]
[341740096,1731171036211,-2505.7,0.0002768,2]
[341740097,1731171036220,-169.17,0.00027859,2]
[341740098,1731171036229,-3836.83897189,0.000279,2]
[341740099,1731171036238,-360.0666241,0.000279,2]
[341740100,1731171036247,-323.15414381,0.000279,2]
[341740101,1731171036257,-174.71258759,0.000279,2]
[341740102,1731171036266,-189.72120918,0.00027906,2]
[341740103,1731171036275,-169.67325875,0.00027906,2]
[341740104,1731171036284,-500.0,0.00027944,7]
[341740105,1731171036293,-347.52,0.00027989,10]
[341740106,1731171036303,-500.0,0.00027999,2]
[341740107,1731171036312,-500.0,0.00027999,2]
[341740108,1731171036322,-500.0,0.00027999,2]
[341740109,1731171036331,-500.0,0.00027999,2]
[341740110,1731171036340,-500.0,0.00027999,2]
[341740111,1731171036351,-500.0,0.00027999,2]
[341740112,1731171036360,-500.0,0.00027999,2]
[341740113,1731171036369,-500.0,0.00027999,2]
[341740114,1731171036378,-500.0,0.00027999,2]
[341740115,1731171036387,-474.5588635,0.00027999,2]
[341740116,1731171036396,-500.0,0.00027999,2]
[341740117,1731171036405,-500.0,0.00027999,2]
[341740118,1731171036414,-500.0,0.00027999,2]
[341740119,1731171036423,-578.17,0.00027999,7]
[341740120,1731171036432,-12874.2893379,0.00027999,2]
[341740121,1731171036441,-1904.31458954,0.00028,2]
[341740122,1731171036451,-57115.19823507,0.00028,4]
[341740123,1731171036740,-277.2336151,0.00028,4]
[341740124,1731171036751,-61056.49614767,0.00028,4]
[341740125,1731171036761,-8247.26267212,0.00028,4]
[341740126,1731171036771,-4104.09019824,0.00028,2]
[341740130,1731171038265,-3590.13138443,0.00028,2]
[341740131,1731171038323,-41636.05321587,0.00028,2]
[341740132,1731171038334,-6090.00140263,0.00028,2]
[341740133,1731171038346,-187845.56359139,0.00028,2]
[341740134,1731171038357,-1023179.78576727,0.00028,2]
[341740135,1731171038487,-381182.48880124,0.00028,2]
[341740136,1731171038651,-192711.10958303,0.00028,2]
[341740137,1731171038662,-37010.14324801,0.00028,2]
[341740285,1731171040171,-199.1799276,0.00027899,2]
[341740287,1731171040181,-106776.01565563,0.00028,2]
[341740293,1731171040228,-1322.04412802,0.00028,2]
[341740296,1731171040243,-1083.91874509,0.00028,2]
[341740320,1731171040452,-199.1799276,0.000279,2]
[341740322,1731171040461,-5838.07482879,0.00028,2]
[341740425,1731171043537,-199.1799276,0.000279,2]
[341740426,1731171043547,-174188.71114021,0.00028,2]
[341740427,1731171043561,-6025.45437747,0.00028,2]
[341740428,1731171043587,-9282.08473806,0.00028,2]
[341740429,1731171043645,-20442.85215254,0.00028,2]
[341740430,1731171043657,-3318.476273,0.00028,2]
[341740431,1731171043668,-131537.1698578,0.00028,2]
[341740444,1731171046340,-379.38323879,0.000279,2]
[341740445,1731171046351,-289.6,0.0002799,10]
[341740446,1731171046361,-792658.83091128,0.00028,2]
[341740447,1731171046371,-305.37386988,0.00028,7]
[341740448,1731171046381,-150.0,0.00028,7]
[341740449,1731171046391,-150.13032027,0.00028,7]
[341740450,1731171046400,-150.0,0.00028,7]
[341740451,1731171046411,-208.16803907,0.00028,7]
[341740452,1731171046421,-150.0,0.00028,7]
[341740453,1731171046431,-150.0,0.00028,7]
[341740454,1731171046442,-150.0,0.00028,7]
[341740455,1731171046453,-152.0,0.00028006,3]
[341740456,1731171046463,-305.37386988,0.00028022,7]
[341740457,1731171046471,-150.13032027,0.00028022,7]
[341740458,1731171046480,-150.0,0.00028029,7]
[341740459,1731171046489,-305.37386988,0.00028043,7]
[341740460,1731171046498,-150.13032027,0.00028043,7]
[341740461,1731171046507,-360.06662403,0.00028057,2]
[341740462,1731171046516,-150.0,0.00028059,7]
[341740463,1731171046525,-305.37386988,0.00028065,7]
[341740464,1731171046534,-150.13032027,0.00028065,7]
[341740465,1731171046544,-150.0,0.00028085,7]
[341740466,1731171046554,-305.37386988,0.00028086,7]
[341740467,1731171046567,-150.13032027,0.00028086,7]
[341740468,1731171046576,-150.0,0.00028088,7]
[341740469,1731171046585,-2505.7,0.00028091,2]
[341740470,1731171046596,-305.37386988,0.00028108,7]
[341740471,1731171046607,-150.13032027,0.00028108,7]
[341740472,1731171046618,-150.0,0.00028117,7]
[341740473,1731171046628,-305.37386988,0.00028129,7]
[341740474,1731171046638,-150.13032027,0.00028129,7]
[341740475,1731171046648,-3836.83897182,0.00028137,2]
[341740476,1731171046658,-150.0,0.00028146,7]